Cogmind - Beta 15 @@@ ROGUE MODE // 2025.05.10 @ 13:07:07 Player: MoYuYu Result: Self-destructed Performance ------------- Evolutions (2) 1000 Regions Visited (4) 800 Robots Destroyed (42) 210 Value Destroyed (1263) 1263 Prototype IDs (1) 20 Alien Tech Used (0) 0 Bonus (0) 0 TOTAL SCORE: 3293 Bonus ------- None Cogmind --------- Core Integrity 130/550 Matter 191/300 Energy 87/100 System Corruption 1% Temperature Warm (119) Movement Core (150) Ox2 Location -8/Materials Parts ------- > --- POWER (1) -------- (None) > --- PROPULSION (4) --- (None) > --- UTILITY (4) ------ Small Storage Unit Visual Processing Unit > --- WEAPON (2) ------- Heavy Assault Rifle > --- INVENTORY (8) ---- Improved Ion Engine Hover Unit Hover Unit System Shield Improved Datajack Plasma Cutter Power Maul Peak State ------------ > --- POWER ------------ Cold Fusion Reactor > --- PROPULSION ------- Armored Treads Armored Treads Aluminum Leg > --- UTILITY ---------- Small Storage Unit Weight Redist. System Hardened Light Armor Plating > --- WEAPON ----------- Beam Rifle Heavy Assault Rifle > --- INVENTORY -------- Ion Engine Flight Unit Flight Unit Flight Unit Flight Unit Visual Processing Unit [Rating: 22] Favorites ----------- Power Ion Engine Engine Ion Engine Reactor Cold Fusion Reactor Propulsion Armored Treads Treads Armored Treads Leg Aluminum Leg Wheel Wheel Hover Unit Hover Unit Flight Unit Flight Unit Utility Small Storage Unit Device Heat Sink Storage Small Storage Unit Processor Visual Processing Unit Protection Hardened Light Armor Plating Weapon Heavy Assault Rifle Energy Gun EM Pulse Gun Energy Cannon Heavy Particle Cannon Ballistic Gun Heavy Assault Rifle Impact Weapon Power Maul Build | -11 -10 -9 -9 -8 ------- Run | Yrd Mat Mat Sto Mat Slots Evolved 4 | . . 2 . 2 Power . | . . . . . Propulsion 2 | . . 1 . 1 Utility 2 | . . 1 . 1 Weapon . | . . . . . Parts Attached 47 | 6 2 11 8 20 Power 6 | 1 . 2 1 2 Engine 5 | 1 . 2 . 2 Core . | . . . . . Reactor 1 | . . . 1 . Propulsion 19 | 2 . 5 4 8 Treads 6 | . . 3 3 . Leg 3 | 2 . . 1 . Wheel 2 | . . 2 . . Hover 4 | . . . . 4 Flight 4 | . . . . 4 Utility 10 | 1 1 2 1 5 Device 4 | . . 1 1 2 Storage 1 | 1 . . . . Processor 1 | . . . . 1 Hackware . | . . . . . Protection 4 | . 1 1 . 2 Artifact . | . . . . . Weapon 12 | 2 1 2 2 5 Energy Gun 3 | 1 . . 1 1 Energy Cannon 1 | . . . . 1 Ballistic Gun 7 | 1 1 2 1 2 Ballistic Cannon . | . . . . . Launcher . | . . . . . Special Weapon . | . . . . . Impact Weapon 1 | . . . . 1 Slashing Weapon . | . . . . . Piercing Weapon . | . . . . . Special Melee Weapon . | . . . . . Unidentified Prototypes 1 | . . . 1 . Corrupted Parts 1 | . . . . 1 System Corruption 1 | . . . . 1 Parts Lost 19 | . . 2 6 11 Power 2 | . . . . 2 Propulsion 7 | . . . 3 4 Utility 6 | . . 1 2 3 Weapon 4 | . . 1 1 2 Highest Loss Streak 6 | . . 2 4 6 To Critical Strikes 2 | . . . 1 1 Average Backups 7 | 1 5 7 7 7 Power 1 | . 1 1 1 2 Propulsion 2 | . 2 3 4 . Utility 1 | . . 1 1 1 Weapon 1 | . 1 1 . . Tool/Special . | . . . . . Unused Backups 11 | . . 4 1 6 Power 3 | . . . 1 2 Propulsion 2 | . . 2 . . Utility 3 | . . 1 . 2 Weapon 1 | . . 1 . . Tool/Special 2 | . . . . 2 Average Slot Usage (%) 89 | . 94 96 91 82 Engine 9 | . 14 11 6 8 Reactor 1 | . . . 4 . Treads 8 | . . 11 17 4 Leg 5 | . 28 3 2 . Wheel 6 | . . 18 8 . Hover 4 | . . . . 12 Flight 4 | . . . . 12 Device 9 | . . 7 10 13 Storage 10 | . 14 11 11 9 Processor 3 | . . . . 8 Protection 6 | . 9 11 7 2 Energy Gun 5 | . 14 7 4 . Ballistic Gun 10 | . 14 14 17 1 Impact Weapon 2 | . . . . 7 Peak Build Rating 22 | 6 7 18 22 20 Average Rating 14 | 4 6 14 18 17 On Entrance 10 | . 6 7 18 20 Naked Turns . | . . . . . Heaviest Build 28 | 13 17 23 28 26 Greatest Support 60 | 20 20 28 60 24 Greatest Overweight (x) 8 | . . . . 8 Average Overweight (x) . | . . . . . Largest Inventory Capacity 8 | 8 8 8 8 8 Average Capacity 7 | 7 8 8 8 8 Most Carried 8 | 4 6 8 8 8 Average Carried 7 | 2 5 7 7 7 Final Capacity 8 | 8 8 8 8 8 Final Carried 8 | 4 6 8 8 7 Class Distribution -------------------- 83% | Mutant 12% | Scavenger-Mutant 3% | Scavenger-Sprinter Dominant Class ---------------- Mutant | -10/Materials Mutant | -9/Materials Mutant | -9/Storage Mutant | -8/Materials Resources | -11 -10 -9 -9 -8 ----------- Run | Yrd Mat Mat Sto Mat Matter Collected 877 | 231 64 235 167 180 Remotely . | . . . . . Salvage Created 1651 | . 56 419 575 601 Parts 74 | . 5 32 24 13 Haulers Intercepted . | . . . . . Recyclers Shooed 1 | . . . . 1 Parts Field Recycled . | . . . . . Retrieved Matter . | . . . . . Parts Self-Destructed . | . . . . . Prevented . | . . . . . Kills | -11 -10 -9 -9 -8 ------- Run | Yrd Mat Mat Sto Mat Combat Hostiles Destroyed 35 | . 3 13 11 8 Melee 1 | . . . . 1 Guns 29 | . 1 13 11 4 Cannons 1 | . . . . 1 AOE 2 | . 2 . . . Classes Destroyed 7 | . 2 2 . 3 Recycler 3 | . . . . 3 Operator 1 | . . . . 1 Watcher 3 | . 1 1 1 . Swarmer 10 | . 3 7 . . Grunt 11 | . . 3 5 3 Sentry 13 | . . 3 6 4 Hunter 1 | . . . . 1 Best Kill Streak 8 | . 3 6 8 3 Combat Bots Only 8 | . 3 6 8 3 Max Kills in Single Turn 2 | . 2 2 1 1 Gunslinging 1 | . . 1 . . Exploded 2 | . 2 . . . Melee 1 | . . . . 1 Uniques/NPCs Destroyed . | . . . . . Combat | -11 -10 -9 -9 -8 -------- Run | Yrd Mat Mat Sto Mat Hostile Shots Fired 335 | . 11 66 94 164 Missed 95 | . 3 17 32 43 Hits 240 | . 8 49 62 121 Projectile 240 | . 8 49 62 121 Critical Strikes 14 | . 1 2 4 7 Damage Taken 3230 | . 70 524 882 1754 Core 600 | . 6 98 76 420 Absorbed by Shields . | . . . . . Redirected to Shielding 5 | . . . . 5 Core Remaining (%) 84 | 100 97 . 56 . Volleys Fired 92 | . 6 33 33 20 Largest 2 | . 2 2 2 2 Hottest 100 | . 60 63 79 100 Shots Fired 184 | . 12 66 66 40 Gun 168 | . 12 66 66 24 Cannon 16 | . . . . 16 Launcher . | . . . . . Special . | . . . . . Kinetic 121 | . 6 44 49 22 Thermal 35 | . . . 17 18 Explosive . | . . . . . Electromagnetic 28 | . 6 22 . . Robot Hit Streak 28 | . 2 15 28 15 Robot Miss Streak 3 | . 3 3 3 2 Penetration Max . | . . . . . Secondary Targets 4 | . 1 2 1 . Max Gunslinging Chain 1 | . 1 1 1 . Shots Hit Robots 160 | . 5 51 52 52 Core Hits 54 | . 4 20 18 12 Critical Kills . | . . . . . Critical Parts Destroyed 9 | . . . 1 8 Critical Strikes 10 | . . . 2 8 Burn 1 | . . . 1 . Destroy 4 | . . . 1 3 Smash 5 | . . . . 5 Melee Attacks 31 | . . . . 31 Impact 31 | . . . . 31 Slashing . | . . . . . Piercing . | . . . . . Sneak Attacks 4 | . . . . 4 Combat Hostiles . | . . . . . Follow-up Attacks . | . . . . . Damage Inflicted 3380 | . 139 768 795 1678 Guns 1944 | . 63 768 795 318 Cannons 275 | . . . . 275 Explosions 76 | . 76 . . . Melee 1085 | . . . . 1085 Ramming . | . . . . . Kinetic 1495 | . 21 521 664 289 Thermal 511 | . 76 . 131 304 Explosive . | . . . . . Electromagnetic 289 | . 42 247 . . Impact 1085 | . . . . 1085 Slashing . | . . . . . Piercing . | . . . . . Highest Corruption 1 | . 1 . . 1 Average Corruption 1 | . 1 . . 1 Corruption Purged . | . . . . . Corruption Blocked . | . . . . . Effects 3 | . 1 . . 2 Message Errors 2 | . . . . 2 Data Loss (minor) 1 | . 1 . . . Overload Shots . | . . . . . Overflow Damage 461 | . . . . 461 Projectiles . | . . . . . Explosions . | . . . . . Melee 461 | . . . . 461 Knockbacks 3 | . . . . 3 Impact 3 | . . . . 3 Kinetic . | . . . . . Secondary . | . . . . . Self-Inflicted Damage 15 | . 15 . . . Shots 1 | . 1 . . . Rammed . | . . . . . Targets Rammed . | . . . . . Kicked . | . . . . . Crushed . | . . . . . Highest Temperature 353 | . 39 96 129 353 Average Temperature 71 | . 15 28 63 142 Received Heat Transfer 921 | . . 180 336 405 Siege Activations . | . . . . . Martial Activations . | . . . . . Shielding Activations . | . . . . . Robots Disrupted . | . . . . . Combat Hostiles . | . . . . . Robots Corrupted 6 | . . . . 6 Combat Hostiles 2 | . . . . 2 Parts Fried 9 | . . 1 . 8 Impact Corruptions 14 | . . . . 14 Robots Melted . | . . . . . Combat Hostiles . | . . . . . Parts Melted . | . . . . . Heat Transferred 988 | . 100 . 407 481 Parts Sabotaged . | . . . . . Parts Stolen . | . . . . . Parts Stripped . | . . . . . Power Chain Reactions 1 | . 1 . . . Alert | -11 -10 -9 -9 -8 ------- Run | Yrd Mat Mat Sto Mat Maximum Alert Level 1 | . . 1 . . Low Security (%) 94 | 100 100 72 100 100 Level 1 5 | . . 27 . . Level 2 . | . . . . . Level 3 . | . . . . . Level 4 . | . . . . . Level 5 . | . . . . . High Security . | . . . . . Max Security . | . . . . . Peak Influence 257 | . 74 257 187 147 Initial 91 | . . 18 91 55 Average 58 | . 17 113 65 41 Influence Increases 1190 | . 86 372 324 408 Destroy 0b10 Robot/C 700 | . 60 260 220 160 Destroy 0b10 Robot/NC 35 | . 5 5 5 20 Destroy Leader 216 | . 12 72 72 60 Successful Hack 24 | . 5 5 9 5 Disable Machine 30 | . . . 15 15 Destroy Structure 20 | . 4 . 3 13 Partial Spotted 75 | . . . . 75 Lose Combat Pursuer 90 | . . 30 . 60 Influence Decreases 1058 | . 42 199 408 409 Entered New Map 230 | . . 26 126 78 Time Decay 577 | . 42 153 161 221 Lost Part 180 | . . 20 50 110 Purge Threat 71 | . . . 71 . Squads Dispatched 6 | . . 2 2 2 Investigation 1 | . . . 1 . Extermination . | . . . . . Reinforcement 5 | . . 2 1 2 Assault . | . . . . . Garrison . | . . . . . Intercept . | . . . . . Searches Triggered . | . . . . . Construction Impeded . | . . . . . Haulers Reinforced . | . . . . . Active Scanning Responses . | . . . . . Cargo Convoy Interrupts . | . . . . . Stealth | -11 -10 -9 -9 -8 --------- Run | Yrd Mat Mat Sto Mat Distress Signals 7 | . . 3 1 3 Communications Jammed . | . . . . . Distress Signals . | . . . . . Times Spotted 62 | . 6 19 15 22 Peak Tracking Total 9 | . 3 5 7 9 Tactical Retreats 4 | . . 1 . 3 Traps | -11 -10 -9 -9 -8 ------- Run | Yrd Mat Mat Sto Mat Traps Triggered 4 | . 1 . 1 2 Indirectly . | . . . . . Trap Hack Attempts . | . . . . . Triggered . | . . . . . Disarmed . | . . . . . Reprogrammed . | . . . . . Reused . | . . . . . Traps Extracted . | . . . . . Installed . | . . . . . Triggered . | . . . . . Machines | -11 -10 -9 -9 -8 ---------- Run | Yrd Mat Mat Sto Mat Machines Disabled 3 | . . 1 1 1 Max in Single Turn 1 | . . 1 1 1 Garrison Access 1 | . . . . 1 Machines Repaired . | . . . . . Machines Dismantled . | . . . . . Machines Sabotaged . | . . . . . Overloaded Fab Kills . | . . . . . Hacking | -11 -10 -9 -9 -8 --------- Run | Yrd Mat Mat Sto Mat Machines Accessed 13 | . 1 2 6 4 Terminals 11 | . 1 1 6 3 Fabricators . | . . . . . Repair Stations . | . . . . . Recycling Units 1 | . . 1 . . Scanalyzers . | . . . . . Garrison Access 1 | . . . . 1 Total Hacks 26 | . 3 4 9 10 Successful 19 | . 2 4 7 6 Failed 7 | . 1 . 2 4 Catastrophic 1 | . . . . 1 Database Lockouts . | . . . . . Manual 11 | . 1 1 3 6 Terminals 22 | . 3 2 9 8 Fabricators . | . . . . . Repair Stations . | . . . . . Recycling Units 2 | . . 2 . . Scanalyzers . | . . . . . Garrison Access 2 | . . . . 2 Terminal Hacks 9 | . 1 1 6 1 Open Door 3 | . . . 3 . Level Access Points 1 | . . . 1 . Alert Level 1 | . . . 1 . Unreport Threat 1 | . . . 1 . Zone Layout 3 | . 1 1 . 1 Fabricator Hacks . | . . . . . Repair Station Hacks . | . . . . . Recycling Unit Hacks 2 | . . 2 . . Report Inventory 1 | . . 1 . . Retrieve Components 1 | . . 1 . . Scanalyzer . | . . . . . Garrison Access Hacks 1 | . . . . 1 Seal Access 1 | . . . . 1 Unauthorized Hacks 7 | . 1 1 1 4 Terminals 7 | . 1 1 1 4 Assimilate 1 | . . . . 1 Botnet 5 | . 1 1 1 2 Operators 1 | . . . . 1 Fabricators . | . . . . . Repair Stations . | . . . . . Recycling Units . | . . . . . Scanalyzers . | . . . . . Garrison Access . | . . . . . Data Cores Recovered . | . . . . . Used . | . . . . . Hacking Detections 9 | . 1 1 4 3 Full Trace Events . | . . . . . Feedback Events . | . . . . . Feedback Blocked . | . . . . . Robot Schematics Acquired . | . . . . . Robots Built . | . . . . . Authchips . | . . . . . Time . | . . . . . Total Robot Build Rating . | . . . . . Part Schematics Acquired . | . . . . . Parts Built . | . . . . . Authchips . | . . . . . Time . | . . . . . Total Part Build Rating . | . . . . . Parts Repaired . | . . . . . Time . | . . . . . Parts Recycled . | . . . . . Recycled Matter . | . . . . . Retrieved Matter . | . . . . . Retrieved Components 9 | . . 9 . . Parts Scanalyzed . | . . . . . Part Schematics Acquired . | . . . . . Parts Damaged . | . . . . . Bothacking | -11 -10 -9 -9 -8 ------------ Run | Yrd Mat Mat Sto Mat Used RIF Installer . | . . . . . Robots Hacked . | . . . . . Non-combat . | . . . . . Combat . | . . . . . Robot Hacks Applied . | . . . . . Relay Couplers Released . | . . . . . Fabnet Peak Effective % . | . . . . . Robots Rewired . | . . . . . Allies Hacked . | . . . . . Hacks Repelled . | . . . . . Allies | -11 -10 -9 -9 -8 -------- Run | Yrd Mat Mat Sto Mat Total Allies . | . . . . . Largest Group . | . . . . . Highest-Rated Group . | . . . . . Highest-Rated Ally . | . . . . . Total Orders . | . . . . . Ally Attacks . | . . . . . Total Damage . | . . . . . Kills . | . . . . . Allies Corrupted . | . . . . . Allies Melted . | . . . . . Intel | -11 -10 -9 -9 -8 ------- Run | Yrd Mat Mat Sto Mat Active Infowar (turns) 571 | . . . . 571 Optics 571 | . . . . 571 Robot Analysis Total . | . . . . . Derelict Logs Recovered . | . . . . . Drone Launches . | . . . . . Drone Recoveries . | . . . . . Exploration | -11 -10 -9 -9 -8 ------------- Run | Yrd Mat Mat Sto Mat Turns Passed 1683 | 69 229 355 453 577 Spaces Moved 1289 | 51 172 240 297 529 Core 8 | 6 . . . 2 Treads 198 | . . . 105 93 Legs 256 | 45 172 39 . . Wheels 393 | . . 201 192 . Hover 321 | . . . . 321 Flight 113 | . . . . 113 Fastest Speed 31 | 50 120 85 85 31 Average Speed 91 | 111 120 90 114 68 Slowest Speed 450 | 120 120 120 170 450 Overloaded Moves . | . . . . . Propulsion Burnouts . | . . . . . Robots Hopped . | . . . . . Potential Cave-ins . | . . . . . Cave-ins Triggered . | . . . . . Exploration Rate (%) 31 | 4 31 28 46 49 Regions Visited 4 Branch Regions 1 Pre-discovered Areas . | . . . . . Known Exits Taken 1 | . . . 1 . Unknown Exits Taken 3 | 1 1 1 . . Scrap Searched . | . . . . . Spaces Dug 8 | . . . . 8 Terrain Destroyed 16 | . 3 . . 13 Melee 8 | . . . . 8 Projectile 5 | . . . . 5 AOE 3 | . 3 . . . Terrain Rammed . | . . . . . Walls Destroyed . | . . . . . Machines Disabled . | . . . . . Actions | -11 -10 -9 -9 -8 --------- Run | Yrd Mat Mat Sto Mat Total 1547 | 60 181 316 345 645 Wait 26 | . 1 11 . 14 Move 1285 | 50 171 239 296 529 Hop . | . . . . . Pick Up 30 | 4 1 11 4 10 Fast Attach 19 | 6 1 1 3 8 Attach 14 | . . 3 2 9 Detach 4 | . . . . 4 Swap 17 | . 1 7 3 6 Drop 29 | . . 11 4 14 Fire 92 | . 6 33 33 20 Melee 31 | . . . . 31 Ram . | . . . . . Kick . | . . . . . Crush . | . . . . . Escape Stasis . | . . . . . Rewire . | . . . . . Trap . | . . . . . Miscellaneous . | . . . . . Route ------- -11/Scrapyard -10/Materials -9/Materials (discovered 2 exits: [*Min] / *Sto) -9/Storage -8/Materials History --------- Turn | Location | Event 4 | -11/Scrapyard | Discovered new exit (range 16) 70 | -11/Scrapyard | Entered Materials 218 | -10/Materials | Discovered new exit (range 12) 299 | -10/Materials | Entered another Materials area 299 | -9/Materials | Evolved 2 slots: Propulsion x1, Utility x1 320 | -9/Materials | Build established: Mutant 436 | -9/Materials | Discovered new exit (range 16) 513 | -9/Materials | Discovered new exit (range 10) 654 | -9/Materials | Entered Storage 796 | -9/Storage | Identified exit to Materials 1004 | -9/Storage | Destroyed 8 combat bots 1012 | -9/Storage | Lost 4 parts (1n2u1w) 1107 | -9/Storage | Entered Materials 1107 | -8/Materials | Evolved 2 slots: Propulsion x1, Utility x1 1645 | -8/Materials | Lost 3 parts (1p1n1u) 1663 | -8/Materials | Core integrity fell below 50% 1684 | -8/Materials | Self-destructed Last Messages --------------- 01659_ Destroyed Lgt. Treads. 01661_ Penetrated by Slug. 01662_ Critical hit (Burn: +37). 01667_ Dropped Hvy. Particle Cannon. 01667_ Acquired Hvy. Assault Rifle. 01669_ Y-45 Defender destroyed. 01669_ Deuterium Engine destroyed. 01670_ Slug penetrates Wall. 01673_ Critical hit (Destroy). 01673_ Hpw. Shotgun destroyed. 01675_ Critical hit (Burn: +37). 01677_ Acquired Beam Rifle. 01678_ Imp. Light Armor Plating destroyed. 01678_ Electrolysis Chamber disabled. 01679_ Penetrated by Slug. 01681_ Critical hit (Burn: +37). 01682_ Beam Rifle destroyed. 01682_ Knocked back. 01682_ Slug penetrates A-02 Transporter. 01684_ Slug penetrates Wall. Map ----- +----------------------------------------------------+ | ??????????# "G" # #?? ? | | ??????????# " " # +?? ? | | ??????????# # ##+####### #?? ? | | ??????????# # # #??## #??? ? | | ??????????######## # #???# #??? ? | | ???????????? ? # #???# #?? | | ???????????? # """ ##### #??##### | | ????????????# ###### """ + #??????? | | ????????????# #????# """ #####+#####???? | | ????????????# #????# ## = #???? | | ????????????# #????##+##### #???? | | ????????????# #?????# #???# ! #???? | | ????????????# #???### ###?# [ #???? | | ?????????#### ##### #?# " " #???? | | ?????????# ### """"" #???? | | ?????????# o ##" """"" #???? | | ?????????# % ### """"" #???? | | ?????????# ####### #?# """ #???? | | ?????????# #;###########?#"########???? | | ?######??# # #????###??????????? | | # ?# # #?????????????????? | | # """# # #?????????????????? | | # """" #* [ #?????????????????? | | # "" " ; %[ #?????????????????? | | # ; +%a! #?????????????????? | | # """# %] @ !#?????????????????? | | # """# Y ;! #?????????????????? | | # ! ""?# h;%* #?????????????????? | | # ?# ;;########?????????????????? | | #######??# H;#?????????????????????????? | | ?????????# #??????????????????????????? | | ?????????# #??????????????????????????? | | ?????????# #??????????????????????????? | | ?????????# #??????????????????????????? | | ?????????# #??????????????????????????? | | ????????? #??????????????????????????? | | ???????? +??????????????????????????? | | ??????? #??????????????????????????? | | ???????#?#+###??????????????????????????? | | ????????????????????????????????????????? | | ????????????????????????????????????????? | | ????????????????????????????????????????? | | ????????????????????????????????????????? | | ????????????????????????????????????????? | | ????????????????????????????????????????? | | ????????????????????????????????????????? | | ????????????????????????????????????????? | | ????????????????????????????????????????? | | ????????????????????????????????????????? | | ????????????????????????????????????????? | +----------------------------------------------------+ Best States ------------- Heat Dissipation 41 Energy Generation 17 Energy Capacity 275 Matter Stores 300 Matter Capacity 300 Sight Range 18 Terrain Scan Density 10 Additional Mass Support 6 Armor Coverage 150 Weapon Shielding 33 Evasion (%) 63 Recoil Reduction 3 Item Schematics ----------------- None Robot Schematics ------------------ None Fabricated ------------ Nothing Repaired ---------- Nothing Alien Tech Used ----------------- None Achievements -------------- None Challenges ------------ None Game ------ Seed DirtySmallEdition Manual? 0 Play Time 00:29:57 Cumulative 144.0 hours Start 2025.05.10 @ 12:42:10 End 2025.05.10 @ 13:07:07 Sessions 1 Manual Loads 0 Difficulty Rogue Special Mode None Game No. 74 Rogue 64 Adventurer 5 Explorer 5 Win Type - Total 7 Types 7/0/0/0/0/0/0/0/0/0 Lore% 40 Gallery% 57 Achievement% 52 Wizard Run 0 Options --------- Layout 2 ASCII 0 Keyboard 0 Movement Mouse Keybinds 1 Fullscreen 1 Font 20/Terminus Map View 50x44 Zoom Use 0% Tactical HUD 1 Map Filters NONE Filters SATURATION(60) Steam 1 RUN: af8f6147-27da-450d-a515-eaec5b3a6747